fUST/lending_fUST_20240821
["ID","MTS","AMOUNT","RATE_DAILY","PERIOD"]
[335465037,1724241039432,-1700.0,0.00020061,2]
[335465038,1724241039442,-500.0,0.00020195,2]
[335465039,1724241039452,-8158.38055075,0.00020235,2]
[335465040,1724241039462,-1700.0,0.00020245,2]
[335465041,1724241039472,-1900.0,0.00020289,2]
[335465042,1724241039482,-226.13158555,0.0002031,2]
[335465043,1724241039492,-1260.81854444,0.0002031,2]
[335465044,1724241039502,-10513.28749774,0.0002031,2]
[335465045,1724241039513,-126513.3262371,0.0002031,2]
[335465046,1724241039523,-500.0,0.00020373,2]
[335465047,1724241039536,-500.0,0.00020373,2]
[335465048,1724241039545,-700.0,0.00020432,2]
[335465049,1724241039555,-700.0,0.0002055,2]
[335465050,1724241039565,-500.0,0.00020626,2]
[335465051,1724241039575,-376.66919532,0.00020626,2]
[335465052,1724241039585,-500.0,0.00020626,2]
[335465053,1724241039597,-236.05442777,0.00020626,2]
[335465054,1724241039608,-500.0,0.00020626,2]
[335465055,1724241039618,-500.0,0.00020626,2]
[335465056,1724241039627,-500.0,0.00020626,2]
[335465057,1724241039637,-500.0,0.00020626,2]
[335465058,1724241039649,-500.0,0.00020626,2]
[335465059,1724241039659,-500.0,0.00020626,2]
[335465060,1724241039670,-500.0,0.00020626,2]
[335465061,1724241039681,-555.23100677,0.00020626,2]
[335465062,1724241039691,-165.742226,0.00020626,2]
[335465063,1724241039703,-1900.0,0.00020627,2]
[335465064,1724241039715,-300.27059,0.00020707,2]
[335465065,1724241039726,-465.00008221,0.00020737,2]
[335465066,1724241039736,-1000.0,0.00020921,2]
[335465067,1724241039747,-1000.0,0.00020921,2]
[335465068,1724241039759,-700.0,0.00020928,2]
[335465069,1724241039771,-1700.0,0.00021178,2]
[335465070,1724241039782,-1900.0,0.00021203,2]
[335465071,1724241039791,-800.0,0.00021298,2]
[335465072,1724241039802,-800.0,0.00021332,2]
[335465073,1724241039813,-1700.0,0.00021396,2]
[335465074,1724241039823,-800.0,0.0002153,2]
[335465075,1724241039833,-1900.0,0.00021576,2]
[335465076,1724241039843,-800.0,0.00021586,2]
[335465077,1724241039853,-2726.19706004,0.00021607,2]
[335465078,1724241039865,-465.00000411,0.00021774,2]
[335465079,1724241039876,-1700.0,0.00021776,2]
[335465080,1724241039887,-946.08518865,0.00021819,2]
[335465081,1724241039898,-302.04105905,0.00021819,2]
[335465082,1724241039908,-1700.0,0.00021832,2]
[335465083,1724241039919,-8158.38055075,0.00021908,3]
[335465084,1724241039929,-23191.3410835,0.00021918,2]
[335465085,1724241039939,-218.04469963,0.00022,2]
[335465086,1724241039950,-302.63687509,0.00022,2]
[335465087,1724241039961,-700.0,0.00022183,2]
[335465088,1724241039978,-302.63687509,0.0002222,2]
[335465089,1724241039987,-1900.0,0.00022439,2]
[335465090,1724241039997,-302.63687509,0.0002244,2]
[335465091,1724241040009,-700.0,0.00022456,2]
[335465092,1724241040019,-700.0,0.00022514,2]
[335465093,1724241040031,-1900.0,0.00022561,2]
[335465094,1724241040041,-800.0,0.0002259,2]
[335465095,1724241040056,-800.0,0.00022598,2]
[335465096,1724241040066,-288.528954,0.00022642,2]
[335465097,1724241040077,-302.63687509,0.0002266,2]
[335465098,1724241040086,-700.0,0.00022723,2]
[335465099,1724241040098,-465.00000021,0.00022863,2]
[335465100,1724241040109,-302.63687509,0.0002288,2]
[335465102,1724241040119,-700.0,0.00022978,2]
[335465103,1724241040132,-201.50174106,0.00023,2]
[335465104,1724241040142,-800.0,0.00023091,2]
[335465105,1724241040154,-301.27779981,0.000231,4]
[335465106,1724241040164,-1900.0,0.0002326,2]
[335465108,1724241040174,-190.0,0.00023353,2]
[335465109,1724241040185,-500.0,0.0002353,2]
[335465110,1724241040196,-800.0,0.00023767,2]
[335465111,1724241040208,-500.0,0.00024017,2]
[335465112,1724241040228,-700.0,0.00024048,2]
[335465113,1724241040237,-800.0,0.00024096,2]
[335465114,1724241040246,-500.0,0.00024116,2]
[335465115,1724241040255,-1700.0,0.00024162,2]
[335465117,1724241040265,-800.0,0.00024218,2]
[335465119,1724241040276,-2726.19706004,0.00024266,2]
[335465122,1724241040286,-700.0,0.0002437,2]
[335465126,1724241040296,-190.0,0.00024405,2]
[335465128,1724241040307,-1900.0,0.00024572,2]
[335465130,1724241040317,-700.0,0.00024651,2]
[335465132,1724241040327,-380.0,0.00024658,2]
[335465134,1724241040337,-631.83554832,0.00024658,2]
[335465136,1724241040347,-953.53947811,0.00024662,2]
[335465138,1724241040357,-882.99597685,0.00024688,2]
[335465140,1724241040367,-1700.0,0.00024713,2]
[335465142,1724241040378,-198.74200664,0.00024756,2]
[335465144,1724241040387,-1376.68634666,0.00024787,2]
[335465146,1724241040398,-10343.5134042,0.00024814,2]
[335465148,1724241040410,-2000.0,0.00024859,2]
[335465150,1724241040420,-277.68803325,0.00024875,2]
[335465151,1724241040431,-8158.38055075,0.00024932,3]
[335465152,1724241040442,-1900.0,0.00024942,2]
[335465153,1724241040452,-500.0,0.00024973,2]
[335465154,1724241040464,-246.48438493,0.00025,2]
[335465155,1724241040475,-191.34123187,0.00025,2]
[335465156,1724241040487,-154.80649189,0.00025,2]
[335465158,1724241040497,-700.0,0.00025046,2]
[335465160,1724241040506,-1700.0,0.0002523,2]
[335465162,1724241040516,-1700.0,0.00025241,2]
[335465164,1724241040526,-700.0,0.0002525,2]
[335465166,1724241040536,-1900.0,0.00025315,2]
[335465168,1724241040545,-1900.0,0.0002537,2]
[335465170,1724241040556,-1900.0,0.00025402,2]
[335465172,1724241040567,-190.0,0.00025458,2]
[335465175,1724241040579,-1900.0,0.00025497,2]
[335465177,1724241040589,-1900.0,0.0002552,2]
[335465179,1724241040598,-1000.0,0.00025521,2]
[335465181,1724241040608,-500.0,0.00025596,2]
[335465183,1724241040617,-800.0,0.00025857,2]
[335465185,1724241040627,-700.0,0.00025976,2]
[335465187,1724241040637,-1900.0,0.00026028,2]
[335465189,1724241040647,-1700.0,0.00026037,2]
[335465191,1724241040656,-900.0,0.00026419,2]
[335465193,1724241040666,-1900.0,0.00026421,2]
[335465195,1724241040676,-1700.0,0.00026462,2]
[335465197,1724241040686,-190.0,0.0002651,2]
[335465199,1724241040696,-169.88,0.000266,31]
[335465201,1724241040709,-169.88,0.000266,31]
[335465203,1724241040719,-169.88,0.000266,31]
[335465205,1724241040728,-169.88,0.000266,31]
[335465207,1724241040737,-169.88,0.000266,31]
[335465209,1724241040748,-169.88,0.000266,31]
[335465211,1724241040758,-169.88,0.000266,31]
[335465213,1724241040768,-169.88,0.000266,31]
[335465215,1724241040777,-169.88,0.000266,31]
[335465217,1724241040787,-169.88,0.000266,31]
[335465219,1724241040797,-169.88,0.000266,31]
[335465221,1724241040807,-169.88,0.000266,31]
[335465223,1724241040816,-800.0,0.00026912,2]
[335465225,1724241040826,-2726.19706004,0.00026924,2]
[335465227,1724241040836,-473.0,0.00027,2]
[335465229,1724241040849,-700.0,0.00027003,2]
[335465232,1724241040860,-300.27059,0.00027167,2]
[335465234,1724241040870,-1376.68634663,0.0002719,2]
[335465236,1724241040880,-1900.0,0.00027228,2]
[335465238,1724241040891,-800.0,0.00027265,2]
[335465240,1724241040901,-800.0,0.00027307,2]
[335465242,1724241040912,-700.0,0.00027322,2]
[335465244,1724241040922,-500.0,0.00027355,2]
[335465247,1724241040934,-207.87011392,0.00027397,2]
[335465249,1724241040944,-933.95747527,0.00027397,2]
[335465251,1724241040956,-190.0,0.00027563,2]
[335465253,1724241040968,-1700.0,0.00027594,2]
[335465255,1724241040977,-473.0,0.00027671,2]
[335465257,1724241040987,-1900.0,0.00027763,2]
[335465260,1724241040999,-700.0,0.00027827,2]
[335465262,1724241041010,-8158.38055075,0.00027935,3]
[335465264,1724241041019,-1480.28757557,0.00027945,120]
[335465266,1724241041030,-313.6271849,0.00028493,2]
[335465268,1724241041040,-688.29452569,0.00028493,2]
[335465270,1724241041051,-500.0,0.00028497,2]
[335465272,1724241041064,-169.88,0.000286,31]
[335465274,1724241041075,-169.88,0.000286,31]
[335465276,1724241041085,-169.88,0.000286,31]
[335465278,1724241041095,-169.88,0.000286,31]
[335465280,1724241041106,-169.88,0.000286,31]
[335465283,1724241041117,-169.88,0.000286,31]
[335465285,1724241041127,-169.88,0.000286,31]
[335465287,1724241041137,-169.88,0.000286,31]
[335465289,1724241041146,-169.88,0.000286,31]
[335465291,1724241041156,-169.88,0.000286,31]
[335465293,1724241041165,-169.88,0.000286,31]
[335465295,1724241041174,-169.88,0.000286,31]
[335465297,1724241041185,-169.88,0.000286,31]
[335465299,1724241041196,-169.88,0.000286,31]
[335465301,1724241041206,-169.88,0.000286,31]
[335465303,1724241041215,-169.88,0.000286,31]
[335465305,1724241041226,-169.88,0.000286,31]
[335465307,1724241041236,-169.88,0.000286,31]
[335465309,1724241041246,-169.88,0.000286,31]
[335465311,1724241041257,-169.88,0.000286,31]
[335465313,1724241041267,-169.88,0.000286,31]
[335465315,1724241041277,-169.88,0.000286,31]
[335465317,1724241041287,-169.88,0.000286,31]
[335465319,1724241041297,-169.88,0.000286,31]
[335465321,1724241041306,-190.0,0.00028615,2]
[335465323,1724241041315,-473.0,0.00028767,2]
[335465326,1724241041326,-800.0,0.0002896,2]
[335465328,1724241041335,-225.0,0.00029,2]
[335465330,1724241041345,-1000.0,0.00029,29]
[335465332,1724241041355,-1700.0,0.00029068,2]
[335465334,1724241041365,-1900.0,0.00029109,2]
[335465336,1724241041375,-1700.0,0.00029331,2]
[335465338,1724241041385,-1700.0,0.00029379,2]
[335465339,1724241041395,-1700.0,0.00029464,2]
[335465340,1724241041404,-2726.19706004,0.00029583,2]
[335465341,1724241041414,-1376.68634663,0.00029594,2]
[335465342,1724241041424,-190.0,0.00029668,2]
[335465343,1724241041433,-500.0,0.00029726,2]
[335465344,1724241041443,-1900.0,0.00029758,2]
[335465345,1724241041453,-499.3,0.00029826,2]
[335465346,1724241041464,-178.72751622,0.0003,5]
[335465347,1724241041474,-161.666968,0.0003,5]
[335465348,1724241041484,-300.0,0.0003,2]
[335465349,1724241041494,-151.0,0.0003,120]
[335465350,1724241041505,-639.0,0.0003,120]
[335465351,1724241041515,-504.34442286,0.0003,2]
[335465352,1724241041524,-255.2,0.0003,14]
[335465353,1724241041534,-430.96,0.0003,7]
[335465354,1724241041544,-1000.0,0.0003,30]
[335465356,1724241041554,-1700.0,0.00030141,7]
[335465358,1724241041564,-500.0,0.00030173,5]
[335465360,1724241041575,-500.0,0.00030173,4]
[335465362,1724241041586,-145746.60764581,0.00030176,15]
[335465364,1724241041597,-615.56643318,0.00030176,7]
[335465366,1724241041607,-700.0,0.00030197,7]
[335465369,1724241041617,-478.0,0.00030205,2]
[335465371,1724241041627,-1900.0,0.00030211,7]
[335465373,1724241041636,-504.34442286,0.000303,2]
[335465375,1724241041648,-700.0,0.00030414,7]
[335465378,1724241041671,-504.34442286,0.000306,2]
[335465381,1724241041683,-169.88,0.000307,31]
[335465382,1724241041694,-169.88,0.000307,31]
[335465385,1724241041706,-169.88,0.000307,31]
[335465387,1724241041718,-169.88,0.000307,31]
[335465389,1724241041730,-169.88,0.000307,31]
[335465391,1724241041742,-169.88,0.000307,31]
[335465393,1724241041752,-169.88,0.000307,31]
[335465396,1724241041764,-169.88,0.000307,31]
[335465398,1724241041773,-169.88,0.000307,31]
[335465400,1724241041784,-169.88,0.000307,31]
[335465402,1724241041795,-169.88,0.000307,31]
[335465404,1724241041805,-169.88,0.000307,31]
[335465406,1724241041814,-169.88,0.000307,31]
[335465408,1724241041825,-169.88,0.000307,31]
[335465410,1724241041835,-169.88,0.000307,31]
[335465412,1724241041845,-169.88,0.000307,31]
[335465414,1724241041855,-169.88,0.000307,31]
[335465443,1724241042121,-169.88,0.000307,31]
[335465445,1724241042132,-169.88,0.000307,31]
[335465447,1724241042143,-169.88,0.000307,31]
[335465450,1724241042153,-169.88,0.000307,31]
[335465452,1724241042163,-169.88,0.000307,31]
[335465454,1724241042174,-169.88,0.000307,31]
[335465456,1724241042186,-169.88,0.000307,31]
[335465458,1724241042196,-1900.0,0.00030713,7]
[335465460,1724241042206,-161.32016401,0.00030721,5]
[335465462,1724241042216,-1000.0,0.00030721,4]
[335465464,1724241042226,-190.0,0.00030721,2]
[335465466,1724241042235,-151.0,0.00030721,2]
[335465468,1724241042245,-603.2375569,0.000309,2]
[335465470,1724241042256,-8158.38055075,0.0003099,4]
[335465472,1724241042266,-150.112233,0.00031,8]
[335465474,1724241042276,-300.0,0.00031,4]
[335465477,1724241042287,-150.112234,0.00031,10]
[335465479,1724241042298,-1000.0,0.00031,31]
[335465481,1724241042308,-700.0,0.00031002,7]
[335465483,1724241042318,-800.0,0.00031103,7]
[335465485,1724241042328,-1900.0,0.00031426,7]
[335465487,1724241042338,-1900.0,0.00031431,7]
[335465489,1724241042348,-430.96,0.000315,7]
[335465491,1724241042357,-16316.7611015,0.00031516,4]
[335465493,1724241042367,-7023.20461314,0.00031526,5]
[335465586,1724241043712,-2573.89999996,0.00031526,5]
[335465613,1724241046609,-500.0,0.00020626,2]
[335465614,1724241046619,-500.0,0.00020626,2]
[335465615,1724241046631,-500.0,0.00020626,2]
[335465616,1724241046642,-2690.20424094,0.00031526,5]
[335465617,1724241046655,-333.3986771,0.00031526,5]
[335465630,1724242016489,-3500.0,0.00022,30]
[335465632,1724242047967,157.53740078,0.00014,2]
[335465633,1724242055983,1522.20440103,0.00014,2]
[335465634,1724242107418,-74.19766778,0.00022,30]
[335465636,1724242194227,498.80271404,0.00013971,2]
[335465637,1724242212340,-154.77557542,0.00014245,2]
[335465638,1724242212364,-196.81150092,0.00014245,2]
[335465639,1724242212387,-728.79489661,0.00014245,2]
[335465640,1724242212411,-154.77557542,0.00014245,2]
[335465641,1724242212439,-293.418754,0.00014247,2]
[335465642,1724242212462,-162.371527,0.00014247,2]
[335465643,1724242225632,-150.0,0.000163,2]
[335465644,1724242225654,-277.68803325,0.00017199,2]
[335465645,1724242225677,-277.68803325,0.00017208,2]
[335465646,1724242225699,-7603.67610413,0.00017898,2]
[335465657,1724242237902,-314.47399217,0.00017119,2]
[335465658,1724242237914,-639.06548594,0.00017119,2]
[335465659,1724242237926,-2739.83730007,0.00017898,2]
[335465660,1724242237937,-615.088371,0.0001822,2]
[335465661,1724242237949,-166.406308,0.00019178,2]
[335465662,1724242237960,-165.742226,0.00019178,2]
[335465663,1724242237969,-800.0,0.00019235,2]
[335465664,1724242237979,-700.0,0.00019347,2]
[335465665,1724242237989,-2100.0,0.00019458,2]
[335465666,1724242237998,-800.0,0.00019467,2]
[335465667,1724242238008,-2100.0,0.000197,2]
[335465668,1724242238017,-700.0,0.00019876,2]
[335465669,1724242238027,-500.0,0.00019973,2]
[335465670,1724242238037,-500.0,0.00019973,2]
[335465671,1724242238046,-800.0,0.0001998,2]
[335465672,1724242238057,-500.0,0.00019985,2]
[335465673,1724242238067,-38095.2635772,0.0001999,2]
[335465674,1724242238078,-170.86,0.0001999,3]
[335465675,1724242238087,-500.0,0.00019999,2]
[335465676,1724242238097,-579.88248341,0.00019999,2]
[335465677,1724242238107,-500.0,0.00019999,2]
[335465678,1724242238116,-500.0,0.00019999,2]
[335465679,1724242238125,-500.0,0.00019999,2]
[335465680,1724242238134,-500.0,0.00019999,2]
[335465681,1724242238144,-111359.96586969,0.0002,2]
[335465682,1724242238153,-1260.81854444,0.0002,2]
[335465683,1724242238162,-226.13158555,0.0002,2]
[335465684,1724242238171,-10513.28749774,0.0002,2]
[335465685,1724242238180,-156.66298998,0.0002,2]
[335465686,1724242238190,-5327.81921818,0.0002,2]
[335465687,1724242238200,-4093.99724662,0.0002,2]
[335465688,1724242238210,-700.0,0.00020299,2]
[335465689,1724242238219,-2100.0,0.00020331,2]
[335465690,1724242238228,-700.0,0.00020401,2]
[335465691,1724242238238,-800.0,0.00020403,2]
[335465692,1724242238248,-2100.0,0.00020515,2]
[335465693,1724242238257,-1000.0,0.00020521,2]
[335465694,1724242238266,-1000.0,0.00020521,2]
[335465695,1724242238275,-2100.0,0.00020647,2]
[335465696,1724242238284,-2100.0,0.00020661,2]
[335465697,1724242238294,-233.35918642,0.00020666,2]
[335465698,1724242238304,-293.418754,0.00020707,2]
[335465699,1724242238313,-500.0,0.00020789,2]
[335465700,1724242238322,-2100.0,0.00020812,2]
[335465701,1724242238331,-167.070384,0.00020826,2]
[335465702,1724242238341,-700.0,0.00020846,2]
[335465703,1724242238351,-700.0,0.00020978,2]
[335465704,1724242238360,-2100.0,0.00020978,2]
[335465705,1724242238370,-2100.0,0.00020979,2]
[335465706,1724242238380,-2100.0,0.00021102,2]
[335465707,1724242238389,-2100.0,0.00021149,2]
[335465708,1724242238399,-2100.0,0.00021163,2]
[335465709,1724242238409,-2100.0,0.00021272,2]
[335465710,1724242238423,-302.04105905,0.00021419,2]
[335465711,1724242238432,-946.08518865,0.00021419,2]
[335465712,1724242238442,-2100.0,0.00021464,2]
[335465713,1724242238455,-4496.82779986,0.00021583,2]
[335465714,1724242238465,-2100.0,0.00021645,2]
[335465715,1724242238475,-800.0,0.00021664,2]
[335465716,1724242238484,-500.0,0.00021683,2]
[335465717,1724242238496,-500.0,0.00021754,2]
[335465718,1724242238506,-19047.6317886,0.00021908,3]
[335465719,1724242238516,-23191.3410835,0.00021918,2]
[335465720,1724242238526,-172.08510632,0.00022,2]
[335465721,1724242238535,-260.03734747,0.00022,2]
[335465722,1724242238545,-154.79103211,0.00022,2]
[335465723,1724242238554,-882.99597685,0.0002217,2]
[335465724,1724242238564,-1000.0,0.00022231,2]
[335465725,1724242238573,-2100.0,0.00022333,2]
[335465726,1724242238584,-800.0,0.00022427,2]
[335465727,1724242238594,-800.0,0.00022497,2]
[335465728,1724242238604,-700.0,0.00022605,2]
[335465729,1724242238613,-236.05442777,0.00022606,2]
[335465730,1724242238622,-551.7980808,0.00022606,2]
[335465731,1724242238632,-500.0,0.00022606,2]
[335465732,1724242238641,-500.0,0.00022606,2]
[335465733,1724242238651,-500.0,0.00022606,2]
[335465734,1724242238660,-269.474648,0.00022606,2]
[335465735,1724242238669,-500.0,0.00022606,2]
[335465736,1724242238679,-500.0,0.00022606,2]
[335465737,1724242238688,-500.0,0.00022606,2]
[335465738,1724242238700,-500.0,0.00022606,2]
[335465739,1724242238709,-500.0,0.00022606,2]
[335465740,1724242238719,-500.0,0.00022606,2]
[335465741,1724242238729,-500.0,0.00022606,2]
[335465742,1724242238739,-500.0,0.00022606,2]
[335465743,1724242238748,-500.0,0.00022606,2]
[335465744,1724242238758,-500.0,0.00022606,2]
[335465745,1724242238768,-500.0,0.00022606,2]
[335465746,1724242238777,-500.0,0.00022606,2]
[335465747,1724242238786,-500.0,0.00022606,2]
[335465748,1724242238796,-500.0,0.00022608,2]
[335465749,1724242238806,-700.0,0.00022626,2]
[335465750,1724242238815,-800.0,0.0002274,2]
[335465751,1724242238825,-477.49555276,0.0002283,2]
[335465752,1724242238834,-500.0,0.00022842,2]
[335465753,1724242238843,-2100.0,0.00022866,2]
[335465754,1724242238854,-201.50174106,0.00023,2]
[335465755,1724242238864,-800.0,0.00023093,2]
[335465756,1724242238874,-19047.6317886,0.00023123,3]
[335465757,1724242238883,-900.0,0.00023129,2]
[335465758,1724242238893,-700.0,0.00023133,2]
[335465759,1724242238902,-700.0,0.00023139,2]
[335465760,1724242238911,-405.2,0.00023315,2]
[335465761,1724242238921,-800.0,0.00023392,2]
[335465762,1724242238931,-2100.0,0.00023416,2]
[335465763,1724242238940,-500.0,0.00023475,2]
[335465764,1724242238950,-700.0,0.00023551,2]
[335465765,1724242238959,-2100.0,0.00023559,2]
[335465766,1724242238968,-401.02347447,0.00023613,2]
[335465767,1724242238978,-500.0,0.00023678,2]
[335465768,1724242238987,-700.0,0.00023682,2]
[335465769,1724242238997,-2100.0,0.00023873,2]
[335465770,1724242239006,-700.0,0.0002391,2]
[335465771,1724242239016,-500.0,0.00023984,2]
[335465772,1724242239025,-2100.0,0.00024196,2]
[335465773,1724242239034,-2100.0,0.0002427,2]
[335465774,1724242239043,-405.2,0.00024371,2]
[335465775,1724242239054,-4496.82779985,0.00024436,2]
[335465776,1724242239065,-2100.0,0.0002457,2]
[335465777,1724242239075,-10157.57444704,0.00024577,2]
[335465778,1724242239084,-200.0,0.00024658,15]
[335465779,1724242239094,-200.0,0.00024658,2]
[335465780,1724242239103,-380.0,0.00024658,2]
[335465781,1724242239111,-631.83554832,0.00024658,2]
[335465782,1724242239121,-160.8404123,0.00024662,2]
[335465783,1724242239130,-154.78144652,0.00024728,2]
[335465784,1724242239140,-154.77557542,0.00024803,2]
[335465785,1724242239149,-154.77557542,0.00024803,2]
[335465786,1724242239159,-309.54884981,0.00024818,2]
[335465787,1724242239168,-782.718708,0.00024847,2]
[335465788,1724242239178,-1111.18149522,0.00024847,2]
[335465789,1724242239187,-435.0,0.00024859,2]
[335465790,1724242239197,-183.32510841,0.00024887,2]
[335465791,1724242239207,-285.48087373,0.00024887,2]
[335465792,1724242239216,-2100.0,0.00024991,2]
[335465793,1724242239226,-369.96805713,0.00025,30]
[335465794,1724242239236,-191.34123187,0.00025,2]
[335465795,1724242239245,-308.47910106,0.00025,2]
[335465796,1724242239254,-154.77557542,0.00025,2]
[335465797,1724242239264,-150.112233,0.00025,5]
[335465798,1724242239273,-199.0,0.00025,2]
[335465799,1724242239283,-309.52538861,0.00025097,2]
[335465800,1724242239292,-2100.0,0.00025122,2]
[335465801,1724242239301,-2100.0,0.00025165,2]
[335465802,1724242239310,-19047.6317886,0.00025276,3]
[335465803,1724242239320,-800.0,0.00025286,2]
[335465804,1724242239329,-405.2,0.00025427,2]
[335465805,1724242239338,-201.28991957,0.00025547,2]
[335465806,1724242239348,-500.0,0.00025547,2]
[335465807,1724242239357,-504.54855206,0.00025547,2]
[335465808,1724242239367,-500.0,0.00025547,2]
[335465809,1724242239376,-500.0,0.00025547,2]
[335465810,1724242239386,-500.0,0.00025815,2]
[335465811,1724242239396,-150.112233,0.00026,6]
[335465812,1724242239406,-500.0,0.00026019,2]
[335465813,1724242239419,-800.0,0.00026023,2]
[335465814,1724242239429,-401.4765779,0.00026095,2]
[335465815,1724242239438,-661.32016401,0.00026095,2]
[335465816,1724242239451,-1000.0,0.00026095,2]
[335465817,1724242239460,-500.0,0.00026107,2]
[335465818,1724242239470,-700.0,0.00026236,2]
[335465819,1724242239480,-3080.05719179,0.00026323,2]
[335465820,1724242239490,-2100.0,0.00026404,2]
[335465821,1724242239499,-405.2,0.00026483,2]
[335465822,1724242239510,-150.112233,0.000265,8]
[335465823,1724242239519,-2100.0,0.00026511,2]
[335465824,1724242239529,-279.79,0.000266,31]
[335465825,1724242239538,-279.79,0.000266,31]
[335465826,1724242239547,-279.79,0.000266,31]
[335465827,1724242239556,-279.79,0.000266,31]
[335465828,1724242239566,-279.79,0.000266,31]
[335465829,1724242239575,-279.79,0.000266,31]
[335465830,1724242239584,-279.79,0.000266,31]
[335465831,1724242239594,-279.79,0.000266,31]
[335465832,1724242239603,-279.79,0.000266,31]
[335465833,1724242239612,-279.79,0.000266,31]
[335465834,1724242239622,-279.79,0.000266,31]
[335465835,1724242239631,-279.79,0.000266,31]
[335465836,1724242239641,-800.0,0.00026605,2]
[335465837,1724242239651,-800.0,0.00026694,2]
[335465838,1724242239660,-2100.0,0.00026891,2]
[335465839,1724242239670,-2100.0,0.00026905,2]
[335465840,1724242239679,-1500.0,0.00026993,2]
[335465841,1724242239688,-800.0,0.00027056,2]
[335465842,1724242239698,-293.418754,0.00027167,2]
[335465843,1724242239707,-2100.0,0.00027187,2]
[335465844,1724242239718,-2100.0,0.00027272,2]
[335465845,1724242239728,-4496.82779985,0.00027289,2]
[335465846,1724242239737,-615.088371,0.0002733,2]
[335465847,1724242239747,-207.87011392,0.00027397,2]
[335465848,1724242239757,-933.95747527,0.00027397,2]
[335465849,1724242239766,-2100.0,0.0002751,2]
[335465850,1724242239776,-405.2,0.00027539,2]
[335465851,1724242239786,-150.112233,0.000276,8]
[335465852,1724242239795,-800.0,0.00027675,2]
[335465853,1724242239806,-500.0,0.00027903,2]
[335465854,1724242239816,-2100.0,0.0002794,2]
[335465855,1724242239826,-1480.28757557,0.00027945,120]
[335465856,1724242239836,-150.112233,0.00028,6]
[335465857,1724242239846,-369.21673832,0.00028,30]
[335465858,1724242239855,-2000.0,0.00028098,4]
[335465859,1724242239866,-2100.0,0.00028131,2]
[335465860,1724242239876,-2100.0,0.00028143,2]
[335465861,1724242239886,-2100.0,0.00028301,2]
[335465862,1724242239895,-700.0,0.00028331,2]
[335465863,1724242239907,-3080.05719179,0.00028467,2]
[335465864,1724242239918,-313.6271849,0.00028493,2]
[335465865,1724242239928,-688.29452569,0.00028493,2]
[335465866,1724242239938,-19047.6317886,0.00028585,3]
[335465867,1724242239948,-405.2,0.00028595,2]
[335465868,1724242239958,-151.0,0.00028595,2]
[335465869,1724242239968,-279.79,0.000286,31]
[335465870,1724242239977,-279.79,0.000286,31]
[335465871,1724242239987,-279.79,0.000286,31]
[335465872,1724242239997,-279.79,0.000286,31]
[335465874,1724242240008,-279.79,0.000286,31]
[335465876,1724242240200,-279.79,0.000286,31]
[335465877,1724242240211,-279.79,0.000286,31]
[335465878,1724242240221,-279.79,0.000286,31]
[335465879,1724242240230,-279.79,0.000286,31]
[335465880,1724242240239,-279.79,0.000286,31]
[335465881,1724242240248,-279.79,0.000286,31]